Cogmind - Beta 14 @@@ ROGUE MODE // 2025.03.08 @ 21:42:27 Player: canerib Result: Destroyed by B-75 Beast with Magnetic Acceleration Cannon Performance ------------- Evolutions (5) 2500 Regions Visited (15) 3000 Robots Destroyed (77) 385 Value Destroyed (3122) 3122 Prototype IDs (4) 80 Alien Tech Used (0) 0 Bonus (1669) 1669 TOTAL SCORE: 10756 Bonus ------- High Alert Combat Kills 265 Follower Combat Kills 739 Entered Garrisons 200 Used RIF Installer 500 Friendly Fire -35 Cogmind --------- Core Integrity 0/1000 Matter 125/300 Energy 58/100 System Corruption 11% Temperature Warm (152) Movement Core (50) Location -5/Extension Parts ------- > --- POWER (2) -------- (None) > --- PROPULSION (6) --- (None) > --- UTILITY (6) ------ Improved Utility Shielding > --- WEAPON (3) ------- (None) > --- INVENTORY (5) ---- Heavy Riot Gun Peak State ------------ > --- POWER ------------ Backup Power III Enhanced Nuclear Core > --- PROPULSION ------- Heavy Treads Aluminum Leg Gravmag System Gyrokinetic Inverter Improved Antigrav System > --- UTILITY ---------- Medium Storage Unit Sensor Array Utility Shielding > --- WEAPON ----------- Backup Laser III Heavy Beamcaster > --- INVENTORY -------- Compact Battery Advanced Terrain Scan Processor Heavy Beamcaster Improved EM Pulse Cannon Datajack Remote Datajack [Rating: 52] Favorites ----------- Power Backup Power III Engine Backup Power III Power Core Light Nuclear Core Reactor Antimatter Reactor Propulsion Aluminum Leg Treads Heavy Treads Leg Aluminum Leg Wheel Wheel Hover Unit Improved Antigrav System Flight Unit Cooled VTOL Module Utility Medium Storage Unit Device Focal Shield Storage Medium Storage Unit Hackware System Shield Protection Utility Shielding Weapon Precision Shock Rifle Energy Gun Precision Shock Rifle Energy Cannon Improved EM Pulse Cannon Ballistic Gun Light Assault Rifle Ballistic Cannon Mass Driver Launcher Guided EMP Blaster Special Weapon Remote Datajack Build | -11 -10 -10 -9 -8 -7 -7 -7 -7 -7 -7 -6 -6 -6 -5 -5 ------- Run | Yrd Mat Min Mat Mat Fac Was Fac Gar Fac Sto Fac Low Low Fac Ext Slots Evolved 10 | . . . 2 2 2 . . . . . 2 . . 2 . Power 1 | . . . . . 1 . . . . . . . . . . Propulsion 4 | . . . 2 1 1 . . . . . . . . . . Utility 4 | . . . . 1 . . . . . . 1 . . 2 . Weapon 1 | . . . . . . . . . . . 1 . . . . Parts Attached 130 | 8 4 5 8 5 13 5 1 20 7 11 14 10 . 16 3 Power 16 | 1 1 1 1 . 2 . . 1 . 2 2 3 . 2 . Engine 10 | 1 1 1 . . . . . . . 2 1 3 . 1 . Core 5 | . . . 1 . 2 . . 1 . . 1 . . . . Reactor 1 | . . . . . . . . . . . . . . 1 . Propulsion 55 | 2 2 2 5 1 3 4 1 15 5 3 2 2 . 8 . Treads 3 | . . . . . . 1 1 . . . . . . 1 . Leg 41 | 2 2 2 5 1 3 . . 15 5 3 . . . 3 . Wheel 1 | . . . . . . . . . . . . 1 . . . Hover 7 | . . . . . . 3 . . . . . 1 . 3 . Flight 3 | . . . . . . . . . . . 2 . . 1 . Utility 21 | 2 1 . . 2 3 . . 1 . . 4 4 . 4 . Device 12 | 1 . . . 1 1 . . 1 . . 3 3 . 2 . Storage 3 | 1 1 . . . 1 . . . . . . . . . . Processor . | . . . . . . . . . . . . . . . . Hackware 2 | . . . . . . . . . . . . 1 . 1 . Protection 4 | . . . . 1 1 . . . . . 1 . . 1 . Artifact . | . . . . . . . . . . . . . . . . Weapon 38 | 3 . 2 2 2 5 1 . 3 2 6 6 1 . 2 3 Energy Gun 22 | 1 . 2 2 1 3 1 . 2 2 4 3 . . 1 . Energy Cannon 3 | . . . . . 2 . . 1 . . . . . . . Ballistic Gun 7 | 2 . . . 1 . . . . . . 2 1 . 1 . Ballistic Cannon 3 | . . . . . . . . . . . . . . . 3 Launcher 1 | . . . . . . . . . . . 1 . . . . Special Weapon 2 | . . . . . . . . . . 2 . . . . . Impact Weapon . | . . . . . . . . . . . . . . . . Slashing Weapon . | . . . . . . . . . . . . . . . . Piercing Weapon . | . . . . . . . . . . . . . . . . Special Melee Weapon . | . . . . . . . . . . . . . . . . Unidentified Prototypes 4 | . . . . . 1 . . . . 1 2 . . . . Corrupted Parts 2 | . . . . . . . . . . . . . . 2 . System Corruption 5 | . . . . . . . . . . . . . . 5 . Parts Lost 62 | . 2 2 1 7 4 . . 9 2 . 13 3 2 9 8 Power 9 | . 1 . . 1 1 . . 2 . . 2 . . 2 . Propulsion 26 | . 1 . . 4 1 . . 5 2 . 5 1 1 2 4 Utility 13 | . . . 1 . . . . . . . 4 2 1 4 1 Weapon 14 | . . 2 . 2 2 . . 2 . . 2 . . 1 3 Highest Loss Streak 9 | . 1 2 1 6 3 . . 9 2 . 5 3 2 8 8 To Critical Strikes . | . . . . . . . . . . . . . . . . Average Slot Usage (%) 79 | . 98 98 98 93 46 75 92 91 93 99 76 24 29 35 35 Engine 6 | . 12 14 10 . . 4 7 6 7 7 6 2 . 1 . Core 3 | . . . . 8 4 7 7 4 7 6 1 . . . . Leg 27 | . 27 28 44 41 11 7 4 39 39 45 24 . . 2 4 Hover 1 | . . . . . . 16 23 . . . . . . 2 10 Device 8 | . 14 14 9 8 6 7 7 7 7 7 7 10 9 6 . Storage 7 | . 14 14 11 8 6 7 7 7 7 7 5 . . . . Protection 5 | . . . . 8 6 7 7 7 7 7 10 . . . 5 Energy Gun 11 | . 14 15 22 12 3 11 15 14 14 12 10 . . . . Ballistic Gun 2 | . 14 10 . 4 . . . . . . 4 . . . . Peak Build Rating 52 | 9 9 10 15 18 17 52 52 52 41 42 51 20 15 46 30 Average Rating 27 | 4 8 9 13 16 12 38 52 34 37 40 42 11 13 25 26 On Entrance 21 | . 9 9 10 14 . 14 52 52 41 40 42 7 15 11 26 Naked Turns 19 | . . . . 14 4 . . . . . 1 . . . . Heaviest Build 42 | 12 19 19 20 24 28 29 29 29 29 30 42 16 3 33 29 Greatest Support 90 | 20 20 20 46 56 20 70 90 90 88 88 88 10 5 30 11 Greatest Overweight (x) 2 | . 1 . . 1 2 2 . 2 . . 2 1 . 1 2 Average Overweight (x) . | . . . . . . . . . . . . . . . . Largest Inventory Capacity 10 | 8 10 10 10 10 10 10 10 10 10 10 10 5 5 5 5 Average Capacity 9 | 6 8 10 10 9 9 10 10 10 10 10 9 5 5 5 5 Most Carried 10 | 5 9 10 10 8 6 6 6 10 10 10 10 5 5 5 4 Average Carried 7 | 2 5 7 9 6 4 5 6 7 8 9 9 3 5 2 2 Final Capacity 10 | 8 10 10 10 5 10 10 10 10 10 10 5 5 5 5 5 Final Carried 10 | 2 6 10 9 5 5 6 6 10 9 10 4 5 5 1 1 Class Distribution -------------------- 46% | Scavenger-Mutant 41% | Mutant 7% | Tank Dominant Class ---------------- Mutant | -10/Materials Mutant | -10/Mines Scavenger-Mutant | -9/Materials Scavenger-Mutant | -8/Materials Mutant | -7/Factory Mutant | -7/Waste Mutant | -7/Factory Scavenger-Mutant | -7/Garrison Scavenger-Mutant | -7/Factory Scavenger-Mutant | -7/Storage Tank | -6/Factory Mutant | -6/Lower Caves Mutant | -6/Lower Caves Mutant | -5/Factory Mutant | -5/Extension Resources | -11 -10 -10 -9 -8 -7 -7 -7 -7 -7 -7 -6 -6 -6 -5 -5 ----------- Run | Yrd Mat Min Mat Mat Fac Was Fac Gar Fac Sto Fac Low Low Fac Ext Matter Collected 1807 | 270 67 60 64 112 120 40 10 200 153 115 406 179 . . 11 Remotely . | . . . . . . . . . . . . . . . . Salvage Created 3563 | 66 178 177 398 451 389 . . 618 293 147 776 . . 70 . Parts 161 | 4 7 9 16 28 17 . . 23 9 6 41 . . 1 . Haulers Intercepted . | . . . . . . . . . . . . . . . . Recyclers Shooed 2 | . . 2 . . . . . . . . . . . . . Parts Field Recycled . | . . . . . . . . . . . . . . . . Retrieved Matter . | . . . . . . . . . . . . . . . . Parts Self-Destructed . | . . . . . . . . . . . . . . . . Prevented . | . . . . . . . . . . . . . . . . Kills | -11 -10 -10 -9 -8 -7 -7 -7 -7 -7 -7 -6 -6 -6 -5 -5 ------- Run | Yrd Mat Min Mat Mat Fac Was Fac Gar Fac Sto Fac Low Low Fac Ext Combat Hostiles Destroyed 68 | . 4 4 8 5 8 . . 11 6 2 19 . . 1 . Guns 60 | . 4 4 8 5 4 . . 9 6 2 17 . . 1 . Cannons 2 | . . . . . 2 . . . . . . . . . . AOE 3 | . . . . . 2 . . . . . 1 . . . . Classes Destroyed 12 | 1 1 . 1 3 1 . . 1 1 1 2 . . . . Builder 1 | . . . . 1 . . . . . . . . . . . Tunneler 4 | 3 . . . . . . . . . . 1 . . . . Recycler 3 | . . . . 3 . . . . . . . . . . . Watcher 1 | . . . . . . . . . . 1 . . . . . Swarmer 11 | . . . . . . . . . . . 11 . . . . Grunt 37 | . 4 4 4 4 5 . . 4 5 2 4 . . 1 . Brawler 1 | . . . . . . . . . . . 1 . . . . Duelist 2 | . . . . 1 1 . . . . . . . . . . Sentry 12 | . . . 4 . . . . 6 . . 2 . . . . Specialist 1 | . . . . . . . . 1 . . . . . . . Hunter 2 | . . . . . 2 . . . . . . . . . . Programmer 2 | . . . . . . . . . 1 . 1 . . . . Best Kill Streak 7 | 2 2 2 3 7 3 . . 2 2 2 6 . . 1 . Combat Bots Only 6 | . 2 2 3 4 3 . . 2 2 2 6 . . 1 . Max Kills in Single Turn 2 | 1 1 1 1 2 2 . . 1 1 1 1 . . 1 . Gunslinging . | . . . . . . . . . . . . . . . . Exploded 2 | . . . . . 2 . . . . . 1 . . . . Melee . | . . . . . . . . . . . . . . . . Uniques/NPCs Destroyed . | . . . . . . . . . . . . . . . . Combat | -11 -10 -10 -9 -8 -7 -7 -7 -7 -7 -7 -6 -6 -6 -5 -5 -------- Run | Yrd Mat Min Mat Mat Fac Was Fac Gar Fac Sto Fac Low Low Fac Ext Hostile Shots Fired 1005 | . 43 33 52 74 64 1 . 223 30 18 221 22 27 86 111 Missed 353 | . 12 13 22 24 24 1 . 75 7 9 68 14 12 31 41 Damage Taken 9814 | . 413 277 412 946 744 . . 1352 472 140 1891 209 185 1069 1704 Core 2805 | . 100 54 47 363 324 . . 152 146 33 338 115 116 207 810 Absorbed by Shields 31 | . . . . . . . . . . . . . . . 31 Redirected to Shielding 70 | . . . . 18 10 . . 5 . . 12 . . . 25 Ignored by Resistances 338 | . . . . . . . . 35 . 12 194 . . 97 . Regen/Repaired (Parts) 409 | . . . . . . 38 . 127 103 141 . . . . . Core Remaining (%) 49 | 100 . 38 88 34 . . . . . 6 . . 33 . . Volleys Fired 333 | 7 20 26 36 28 35 . . 42 25 19 87 . . 5 3 Largest 3 | 2 2 2 2 2 2 . . 2 2 2 3 . . 2 3 Hottest 185 | 70 70 100 96 96 119 . . 156 156 138 185 . . 93 171 Shots Fired 572 | 14 40 47 72 56 45 . . 74 44 31 131 . . 10 8 Gun 547 | 14 40 47 72 56 36 . . 73 44 24 131 . . 10 . Cannon 18 | . . . . . 9 . . 1 . . . . . . 8 Launcher . | . . . . . . . . . . . . . . . . Special 7 | . . . . . . . . . . 7 . . . . . Kinetic 151 | 7 20 18 . 26 . . . . . . 67 . . 5 8 Thermal 292 | 7 20 29 72 30 9 . . 73 44 2 6 . . . . Explosive . | . . . . . . . . . . . . . . . . Electromagnetic 122 | . . . . . 36 . . 1 . 22 58 . . 5 . Robot Hit Streak 22 | 7 10 9 12 22 7 . . 10 7 9 10 . . 7 . Robot Miss Streak 6 | 1 3 2 3 5 3 . . 2 6 2 6 . . 2 . Penetration Max 1 | . . . . . . . . . . . . . . 1 . Secondary Targets 5 | . . 1 . 1 . . . 1 . . 1 . . 1 . Max Gunslinging Chain 1 | . . 1 . 1 . . . 1 . . 1 . . 1 . Shots Hit Robots 381 | 10 28 36 49 33 33 . . 52 22 23 87 . . 8 . Core Hits 163 | 4 9 12 17 17 15 . . 19 13 9 42 . . 6 . Critical Kills . | . . . . . . . . . . . . . . . . Critical Parts Destroyed . | . . . . . . . . . . . . . . . . Critical Strikes 16 | . . . 4 1 1 . . 6 2 . 2 . . . . Burn 14 | . . . 4 1 1 . . 6 2 . . . . . . Corrupt 2 | . . . . . . . . . . . 2 . . . . Melee Attacks . | . . . . . . . . . . . . . . . . Impact . | . . . . . . . . . . . . . . . . Slashing . | . . . . . . . . . . . . . . . . Piercing . | . . . . . . . . . . . . . . . . Sneak Attacks . | . . . . . . . . . . . . . . . . Combat Hostiles . | . . . . . . . . . . . . . . . . Follow-up Attacks . | . . . . . . . . . . . . . . . . Damage Inflicted 6835 | 105 300 379 623 491 966 . . 1140 474 277 1871 . . 209 . Guns 6191 | 105 300 379 620 488 465 . . 1112 474 277 1762 . . 209 . Cannons 234 | . . . . . 206 . . 28 . . . . . . . Explosions 394 | . . . . . 295 . . . . . 99 . . . . Melee . | . . . . . . . . . . . . . . . . Ramming 16 | . . . 3 3 . . . . . . 10 . . . . Kinetic 1654 | 43 89 107 . 257 . . . . . . 1046 . . 112 . Thermal 3579 | 62 211 272 620 231 435 . . 1112 474 . 162 . . . . Explosive . | . . . . . . . . . . . . . . . . Electromagnetic 1586 | . . . . . 531 . . 28 . 277 653 . . 97 . Impact . | . . . . . . . . . . . . . . . . Slashing . | . . . . . . . . . . . . . . . . Piercing . | . . . . . . . . . . . . . . . . Highest Corruption 11 | . . . . . . . . . . 2 6 6 6 5 11 Average Corruption 4 | . . . . . . . . . . 2 2 6 6 4 5 Corruption Purged . | . . . . . . . . . . . . . . . . Corruption Blocked . | . . . . . . . . . . . . . . . . Effects 25 | . . . . . . . . . . . 6 12 . 3 4 Message Errors 8 | . . . . . . . . . . . 2 2 . 2 2 Matter Fused 6 | . . . . . . . . . . . 2 3 . . 1 Heat Flow Errors 2 | . . . . . . . . . . . 1 . . . 1 Energy Discharges 5 | . . . . . . . . . . . 1 4 . . . Parts Rejected 1 | . . . . . . . . . . . . . . 1 . Data Loss (major) 2 | . . . . . . . . . . . . 2 . . . Alerts 1 | . . . . . . . . . . . . 1 . . . Overload Shots . | . . . . . . . . . . . . . . . . Overflow Damage 13 | . . . . . 7 . . . . . 6 . . . . Projectiles . | . . . . . . . . . . . . . . . . Explosions 13 | . . . . . 7 . . . . . 6 . . . . Melee . | . . . . . . . . . . . . . . . . Knockbacks . | . . . . . . . . . . . . . . . . Impact . | . . . . . . . . . . . . . . . . Kinetic . | . . . . . . . . . . . . . . . . Secondary . | . . . . . . . . . . . . . . . . Self-Inflicted Damage 224 | . . . . 1 170 . . . . . 53 . . . . Shots 3 | . . . . . 2 . . . . . 1 . . . . Rammed 4 | . . . . 1 . . . . . . 3 . . . . Targets Rammed 8 | . . . 4 1 . . . . . . 3 . . . . Kicked 4 | . . . 4 . . . . . . . . . . . . Crushed . | . . . . . . . . . . . . . . . . Highest Temperature 725 | 60 235 249 216 7 234 . . 532 725 122 517 . . 116 78 Average Temperature 119 | 25 85 106 76 7 81 . . 138 219 47 147 . . 58 43 Received Heat Transfer 2631 | . 252 162 192 423 117 . . 390 171 21 375 51 66 207 204 Effects 40 | . 3 . . . . . . 7 20 . 10 . . . . Shutdowns 13 | . . . . . . . . . 8 . 5 . . . . Energy Bleed 1 | . . . . . . . . 1 . . . . . . . Interference 9 | . 3 . . . . . . 3 3 . . . . . . Matter Decay 4 | . . . . . . . . . 2 . 2 . . . . Short Circuit 9 | . . . . . . . . 2 4 . 3 . . . . Damage (minor) 3 | . . . . . . . . 1 2 . . . . . . Damage (core) 1 | . . . . . . . . . 1 . . . . . . Siege Activations . | . . . . . . . . . . . . . . . . Robots Corrupted 1 | . . . . . . . . . . . 1 . . . . Combat Hostiles 1 | . . . . . . . . . . . 1 . . . . Parts Fried 7 | . . . . . 1 . . . . 2 4 . . . . Impact Corruptions . | . . . . . . . . . . . . . . . . Robots Melted 2 | . . . . . . . . 2 . . . . . . . Combat Hostiles 2 | . . . . . . . . 2 . . . . . . . Parts Melted 15 | 1 . 1 5 . . . . 8 . . . . . . . Heat Transferred 8019 | 185 629 814 1846 632 570 . . 2220 962 . 161 . . . . Parts Sabotaged . | . . . . . . . . . . . . . . . . Parts Stolen . | . . . . . . . . . . . . . . . . Parts Stripped . | . . . . . . . . . . . . . . . . Power Chain Reactions 3 | . . . . . 2 . . . . . 1 . . . . Alert | -11 -10 -10 -9 -8 -7 -7 -7 -7 -7 -7 -6 -6 -6 -5 -5 ------- Run | Yrd Mat Min Mat Mat Fac Was Fac Gar Fac Sto Fac Low Low Fac Ext Peak Influence 854 | 15 64 95 178 205 223 47 169 854 556 108 325 . . 216 270 Initial 434 | . 9 15 37 70 74 33 32 118 434 71 29 . . 79 105 Average 226 | 5 40 41 115 138 92 43 108 658 387 80 164 . . 106 186 Maximum Alert Level 3 | . . . . 1 1 . . 3 2 . 1 . . 1 1 Low Security (%) 65 | 100 100 100 100 77 92 100 100 2 13 100 68 . . 94 49 Level 1 13 | . . . . 22 7 . . 7 34 . 31 . . 5 50 Level 2 12 | . . . . . . . . 35 51 . . . . . . Level 3 8 | . . . . . . . . 55 . . . . . . . Level 4 . | . . . . . . . . . . . . . . . . Level 5 . | . . . . . . . . . . . . . . . . High Security . | . . . . . . . . . . . . . . . . Max Security . | . . . . . . . . . . . . . . . . Squads Dispatched 25 | . 2 . 2 5 3 . . . 3 2 4 . . 4 . Investigation 11 | . 1 . . 2 1 . . . 1 1 2 . . 3 . Extermination 3 | . . . . . . . . . 1 . 2 . . . . Reinforcement 11 | . 1 . 2 3 2 . . . 1 1 . . . 1 . Assault . | . . . . . . . . . . . . . . . . Garrison . | . . . . . . . . . . . . . . . . Intercept . | . . . . . . . . . . . . . . . . Searches Triggered . | . . . . . . . . . . . . . . . . Construction Impeded . | . . . . . . . . . . . . . . . . Haulers Reinforced . | . . . . . . . . . . . . . . . . Active Scanning Responses . | . . . . . . . . . . . . . . . . Cargo Convoy Interrupts . | . . . . . . . . . . . . . . . . Stealth | -11 -10 -10 -9 -8 -7 -7 -7 -7 -7 -7 -6 -6 -6 -5 -5 --------- Run | Yrd Mat Min Mat Mat Fac Was Fac Gar Fac Sto Fac Low Low Fac Ext Distress Signals 2 | . . . 2 . . . . . . . . . . . . Communications Jammed . | . . . . . . . . . . . . . . . . Distress Signals . | . . . . . . . . . . . . . . . . Times Spotted 185 | . 5 4 14 19 9 6 2 26 16 13 33 11 4 13 10 Peak Tracking Total 9 | . 3 1 5 9 3 6 2 3 4 4 6 6 4 6 8 Tactical Retreats 18 | . . . 1 . . 1 . . . . 4 3 . 6 3 Traps | -11 -10 -10 -9 -8 -7 -7 -7 -7 -7 -7 -6 -6 -6 -5 -5 ------- Run | Yrd Mat Min Mat Mat Fac Was Fac Gar Fac Sto Fac Low Low Fac Ext Traps Triggered 10 | . . . . 1 2 . . 1 2 2 . . . 1 1 Indirectly . | . . . . . . . . . . . . . . . . Trap Hack Attempts . | . . . . . . . . . . . . . . . . Triggered . | . . . . . . . . . . . . . . . . Disarmed . | . . . . . . . . . . . . . . . . Reprogrammed . | . . . . . . . . . . . . . . . . Reused . | . . . . . . . . . . . . . . . . Traps Extracted . | . . . . . . . . . . . . . . . . Installed . | . . . . . . . . . . . . . . . . Triggered 2 | . . . . . . . . . . . . . . 2 . Machines | -11 -10 -10 -9 -8 -7 -7 -7 -7 -7 -7 -6 -6 -6 -5 -5 ---------- Run | Yrd Mat Min Mat Mat Fac Was Fac Gar Fac Sto Fac Low Low Fac Ext Machines Disabled 5 | . . . 1 . 1 . 1 1 . 1 . . . . . Max in Single Turn 1 | . . . 1 . 1 . . . . 1 . . . . . Garrison Access 1 | . . . . 1 . . . . . . . . . . . Machines Repaired . | . . . . . . . . . . . . . . . . Machines Dismantled . | . . . . . . . . . . . . . . . . Machines Sabotaged . | . . . . . . . . . . . . . . . . Overloaded Fab Kills . | . . . . . . . . . . . . . . . . Hacking | -11 -10 -10 -9 -8 -7 -7 -7 -7 -7 -7 -6 -6 -6 -5 -5 --------- Run | Yrd Mat Min Mat Mat Fac Was Fac Gar Fac Sto Fac Low Low Fac Ext Machines Accessed 37 | . 5 . 3 4 3 . 1 2 5 4 3 1 . 5 1 Terminals 25 | . 4 . 3 3 2 . . 2 3 2 1 1 . 3 1 Fabricators 3 | . . . . . . . . . 1 . . . . 2 . Repair Stations 6 | . 1 . . . 1 . . . 1 1 2 . . . . Recycling Units 1 | . . . . . . . . . . 1 . . . . . Scanalyzers . | . . . . . . . . . . . . . . . . Garrison Access 2 | . . . . 1 . . 1 . . . . . . . . Total Hacks 95 | . 13 . 8 13 6 . 2 4 13 15 7 1 . 12 1 Successful 39 | . 3 . 4 7 1 . 1 1 8 8 2 1 . 3 . Failed 56 | . 10 . 4 6 5 . 1 3 5 7 5 . . 9 1 Catastrophic 11 | . 1 . 2 1 2 . . 1 . . 1 . . 2 1 Database Lockouts . | . . . . . . . . . . . . . . . . Manual 37 | . 6 . 4 6 2 . . . 8 3 2 . . 5 1 Terminals 64 | . 11 . 8 11 4 . . 4 8 5 3 1 . 8 1 Fabricators 5 | . . . . . . . . . 1 . . . . 4 . Repair Stations 20 | . 2 . . . 2 . . . 4 8 4 . . . . Recycling Units 2 | . . . . . . . . . . 2 . . . . . Scanalyzers . | . . . . . . . . . . . . . . . . Garrison Access 4 | . . . . 2 . . 2 . . . . . . . . Terminal Hacks 13 | . 1 . 2 3 . . . 1 1 2 1 1 . 1 . Record 1 | . . . . . . . . . . . . 1 . . . Part Schematic 1 | . . . . . . . . . . . 1 . . . . Open Door 2 | . . . . . . . . . . 1 . . . 1 . Level Access Points 1 | . . . . 1 . . . . . . . . . . . Branch Access Points 1 | . . . . 1 . . . . . . . . . . . Emergency Access Points 2 | . 1 . . . . . . 1 . . . . . . . Alert Level 2 | . . . 1 1 . . . . . . . . . . . Unreport Threat 1 | . . . . . . . . . 1 . . . . . . Recall Investigation 1 | . . . . . . . . . . 1 . . . . . Recall Reinforcements 1 | . . . 1 . . . . . . . . . . . . Fabricator Hacks 3 | . . . . . . . . . 1 . . . . 2 . Network Status 1 | . . . . . . . . . 1 . . . . . . Load Schematic 1 | . . . . . . . . . . . . . . 1 . Build 1 | . . . . . . . . . . . . . . 1 . Repair Station Hacks 10 | . . . . . . . . . 4 5 1 . . . . Scan Component 6 | . . . . . . . . . 2 3 1 . . . . Repair 4 | . . . . . . . . . 2 2 . . . . . Recycling Unit Hacks 1 | . . . . . . . . . . 1 . . . . . Report Inventory 1 | . . . . . . . . . . 1 . . . . . Scanalyzer . | . . . . . . . . . . . . . . . . Garrison Access Hacks 2 | . . . . 1 . . 1 . . . . . . . . Unlock Access 1 | . . . . . . . 1 . . . . . . . . Seal Access 1 | . . . . 1 . . . . . . . . . . . Unauthorized Hacks 10 | . 2 . 2 3 1 . . . 2 . . . . . . Terminals 10 | . 2 . 2 3 1 . . . 2 . . . . . . Assimilate 1 | . . . . 1 . . . . . . . . . . . Botnet 9 | . 2 . 2 2 1 . . . 2 . . . . . . Fabricators . | . . . . . . . . . . . . . . . . Repair Stations . | . . . . . . . . . . . . . . . . Recycling Units . | . . . . . . . . . . . . . . . . Scanalyzers . | . . . . . . . . . . . . . . . . Garrison Access . | . . . . . . . . . . . . . . . . Data Cores Recovered . | . . . . . . . . . . . . . . . . Used . | . . . . . . . . . . . . . . . . Hacking Detections 31 | . 5 . 3 3 3 . . 2 4 3 3 . . 4 1 Full Trace Events 9 | . 1 . 1 1 1 . . . . . 2 . . 3 . Feedback Events . | . . . . . . . . . . . . . . . . Feedback Blocked . | . . . . . . . . . . . . . . . . Robot Schematics Acquired . | . . . . . . . . . . . . . . . . Robots Built . | . . . . . . . . . . . . . . . . Authchips . | . . . . . . . . . . . . . . . . Time . | . . . . . . . . . . . . . . . . Total Robot Build Rating . | . . . . . . . . . . . . . . . . Part Schematics Acquired 1 | . . . . . . . . . . . 1 . . . . Parts Built 2 | . . . . . . . . . . . . . . 2 . Authchips . | . . . . . . . . . . . . . . . . Time 58 | . . . . . . . . . . . . . . 58 . Total Part Build Rating 14 | . . . . . . . . . . . . . . 14 . Parts Repaired 4 | . . . . . . . . . 2 2 . . . . . Time 170 | . . . . . . . . . 94 76 . . . . . Parts Recycled . | . . . . . . . . . . . . . . . . Recycled Matter . | . . . . . . . . . . . . . . . . Retrieved Matter . | . . . . . . . . . . . . . . . . Retrieved Components . | . . . . . . . . . . . . . . . . Parts Scanalyzed . | . . . . . . . . . . . . . . . . Part Schematics Acquired . | . . . . . . . . . . . . . . . . Parts Damaged . | . . . . . . . . . . . . . . . . Bothacking | -11 -10 -10 -9 -8 -7 -7 -7 -7 -7 -7 -6 -6 -6 -5 -5 ------------ Run | Yrd Mat Min Mat Mat Fac Was Fac Gar Fac Sto Fac Low Low Fac Ext Used RIF Installer 1 | . . . . . . . . 1 . . . . . . . Robots Hacked 2 | . . . . . . . . . . 2 . . . . . Non-combat . | . . . . . . . . . . . . . . . . Combat 2 | . . . . . . . . . . 2 . . . . . Robot Hacks Applied 2 | . . . . . . . . . . 2 . . . . . parse_system 2 | . . . . . . . . . . 2 . . . . . Relay Couplers Released . | . . . . . . . . . . . . . . . . Fabnet Peak Effective % . | . . . . . . . . . . . . . . . . Robots Rewired . | . . . . . . . . . . . . . . . . Allies Hacked . | . . . . . . . . . . . . . . . . Hacks Repelled . | . . . . . . . . . . . . . . . . Allies | -11 -10 -10 -9 -8 -7 -7 -7 -7 -7 -7 -6 -6 -6 -5 -5 -------- Run | Yrd Mat Min Mat Mat Fac Was Fac Gar Fac Sto Fac Low Low Fac Ext Total Allies 19 | . . . . . . 19 . . . . . . . . . Largest Group 19 | . . . . . . 19 16 16 . . . . . . . Highest-Rated Group 475 | . . . . . . 475 412 412 . . . . . . . Highest-Rated Ally 35 | . . . . . . 35 35 35 . . . . . . . Total Orders . | . . . . . . . . . . . . . . . . Ally Attacks 315 | . . . . . . 149 13 153 . . . . . . . Total Damage 7401 | . . . . . . 4369 267 2765 . . . . . . . Kills 29 | . . . . . . 9 3 17 . . . . . . . Allies Corrupted . | . . . . . . . . . . . . . . . . Allies Melted . | . . . . . . . . . . . . . . . . Intel | -11 -10 -10 -9 -8 -7 -7 -7 -7 -7 -7 -6 -6 -6 -5 -5 ------- Run | Yrd Mat Min Mat Mat Fac Was Fac Gar Fac Sto Fac Low Low Fac Ext Robot Analysis Total . | . . . . . . . . . . . . . . . . Derelict Logs Recovered 1 | . . . . . . . . . . . . . 1 . . Drone Launches . | . . . . . . . . . . . . . . . . Drone Recoveries . | . . . . . . . . . . . . . . . . Exploration | -11 -10 -10 -9 -8 -7 -7 -7 -7 -7 -7 -6 -6 -6 -5 -5 ------------- Run | Yrd Mat Min Mat Mat Fac Was Fac Gar Fac Sto Fac Low Low Fac Ext Turns Passed 6855 | 92 487 232 576 297 700 313 116 984 927 506 884 278 22 274 167 Spaces Moved 4724 | 53 321 125 342 184 313 237 61 626 582 291 454 467 56 315 297 Core 157 | 12 . . . 28 6 . . . . . 1 103 . . 7 Treads 220 | . . . . . . 96 61 19 . . . . . 44 . Legs 3226 | 41 321 125 342 156 307 22 . 607 582 291 420 . . 12 . Wheels 59 | . . . . . . . . . . . . 59 . . . Hover 129 | . . . . . . 119 . . . . . . . 1 9 Flight 933 | . . . . . . . . . . . 33 305 56 258 281 Fastest Speed 32 | 50 120 120 120 50 50 66 160 120 120 121 32 35 35 35 45 Average Speed 108 | 104 120 120 120 111 179 124 160 121 121 121 123 46 39 66 46 Slowest Speed 260 | 120 190 120 120 190 260 260 160 260 122 121 260 95 40 250 150 Overloaded Moves 1 | . . . . . . . . . . . 1 . . . . Propulsion Burnouts . | . . . . . . . . . . . . . . . . Robots Hopped 18 | . . . . . . . . . . . 2 6 1 4 5 Cave-ins Triggered 1 | . . . . . . . . . . . . . . . 1 Exploration Rate (%) 32 | 4 52 28 43 22 8 91 3 69 16 52 16 62 13 12 35 Regions Visited 15 Branch Regions 5 Pre-discovered Areas 1 | . . . . . . . . . . 1 . . . . . Known Exits Taken 2 | . . . . 1 . . 1 . . . . . . . . Unknown Exits Taken 10 | 1 1 1 1 . . . . . 1 1 1 1 1 1 . Scrap Searched 4 | . . 1 . . . . . . . . . 2 1 . . Spaces Dug 2 | . . . . . . . . . . . . . . . 2 Terrain Destroyed 56 | . . . . . 51 . . . . . 3 . . . 2 Melee . | . . . . . . . . . . . . . . . . Projectile 2 | . . . . . . . . . . . . . . . 2 AOE 54 | . . . . . 51 . . . . . 3 . . . . Terrain Rammed . | . . . . . . . . . . . . . . . . Walls Destroyed . | . . . . . . . . . . . . . . . . Machines Disabled . | . . . . . . . . . . . . . . . . Actions | -11 -10 -10 -9 -8 -7 -7 -7 -7 -7 -7 -6 -6 -6 -5 -5 --------- Run | Yrd Mat Min Mat Mat Fac Was Fac Gar Fac Sto Fac Low Low Fac Ext Total 5887 | 76 384 162 441 219 405 253 79 773 763 416 665 520 54 364 313 Wait 589 | . 31 3 39 . 35 10 16 62 132 88 98 45 . 30 . Move 4678 | 52 320 124 341 183 313 236 61 625 581 290 450 455 53 307 287 Hop 16 | . . . . . . . . . . . 2 5 1 3 5 Pick Up 66 | 9 7 3 5 2 8 1 . 14 6 2 4 1 . 1 3 Fast Attach 48 | . . 1 . . 4 4 1 7 6 4 6 7 . 8 . Attach 56 | 7 2 1 3 4 9 1 . 8 1 . 7 3 . 7 3 Detach 11 | . . . . . 1 1 . . 3 . 1 3 . 2 . Swap 26 | 1 2 3 5 1 . . . 5 . 7 1 . . 1 . Drop 44 | . 2 1 8 . . . 1 9 9 6 7 1 . . . Fire 333 | 7 20 26 36 28 35 . . 42 25 19 87 . . 5 3 Melee . | . . . . . . . . . . . . . . . . Ram 3 | . . . . 1 . . . . . . 2 . . . . Kick 4 | . . . 4 . . . . . . . . . . . . Crush . | . . . . . . . . . . . . . . . . Escape Stasis 13 | . . . . . . . . 1 . . . . . . 12 Rewire . | . . . . . . . . . . . . . . . . Trap . | . . . . . . . . . . . . . . . . Miscellaneous . | . . . . . . . . . . . . . . . . Route ------- -11/Scrapyard -10/Materials (discovered 3 exits: *Mat x2 / [*Min]) -10/Mines -9/Materials -8/Materials (discovered 3 exits: *Fac x3) -7/Factory -7/Waste -7/Factory -7/Garrison (discovered 3 exits: *Fac x3) -7/Factory (discovered 2 exits: *Fac / *Sto) -7/Storage (discovered 2 exits: *Fac / [*Rec]) -6/Factory -6/Lower Caves -6/Lower Caves (discovered 2 exits: *Fac / Dat) -5/Factory -5/Extension History --------- Turn | Location | Event 4 | -11/Scrapyard | Discovered new exit (range 15) 93 | -11/Scrapyard | Entered Materials 289 | -10/Materials | Discovered new exit (range 5) 300 | -10/Materials | Build established: Mutant 418 | -10/Materials | Discovered new exit (range 4) 562 | -10/Materials | Discovered new exit (range 14) 580 | -10/Materials | Entered Mines 728 | -10/Mines | Core integrity fell below 50% 780 | -10/Mines | Discovered new exit (range 8) 812 | -10/Mines | Entered Materials 812 | -9/Materials | Evolved 2 slots: Propulsion x2 1089 | -9/Materials | Build established: Scavenger-Mutant 1365 | -9/Materials | Discovered new exit (range 16) 1388 | -9/Materials | Entered another Materials area 1388 | -8/Materials | Evolved 2 slots: Propulsion x1, Utility x1 1631 | -8/Materials | Identified exit to Factory 1671 | -8/Materials | Released all parts (5) 1678 | -8/Materials | Core integrity fell below 50% 1685 | -8/Materials | Entered Factory 1685 | -7/Factory | Evolved 2 slots: Power x1, Propulsion x1 1702 | -7/Factory | Lost 6 parts (1p4n1w) 1971 | -7/Factory | Build established: Mutant 2149 | -7/Factory | Lost 3 parts (1p1n1w) 2385 | -7/Factory | Sucked down chute 2385 | -7/Factory | Entered Waste 2393 | -7/Waste | Spotted C-40 Crusher 2406 | -7/Waste | Spotted C-40 Crusher 2412 | -7/Waste | Spotted C-40 Crusher 2433 | -7/Waste | Spotted C-40 Crusher 2442 | -7/Waste | Spotted C-40 Crusher 2443 | -7/Waste | Spotted C-40 Crusher 2458 | -7/Waste | Warlord forces began an assault 2465 | -7/Waste | Allies destroyed C-40 Crusher 2475 | -7/Waste | Allies destroyed C-40 Crusher 2492 | -7/Waste | Allies destroyed C-40 Crusher 2505 | -7/Waste | Lost 3 allies 2575 | -7/Waste | Discovered new exit (range 16) 2698 | -7/Waste | Entered Factory 2698 | -7/Factory | Accompanied by 16 allies 2798 | -7/Factory | Identified exit to Garrison 2814 | -7/Factory | Entered Garrison 2814 | -7/Garrison | Accompanied by 16 allies 2894 | -7/Garrison | Triggered checkpoint 2900 | -7/Garrison | Triggered checkpoint 2980 | -7/Garrison | Discovered new exit (range 10) 3010 | -7/Garrison | Triggered checkpoint 3030 | -7/Garrison | Triggered checkpoint 3137 | -7/Garrison | Build established: Scavenger-Mutant 3148 | -7/Garrison | Triggered checkpoint 3168 | -7/Garrison | Triggered checkpoint 3234 | -7/Garrison | Triggered checkpoint 3241 | -7/Garrison | Core integrity fell below 50% 3346 | -7/Garrison | Lost 9 parts (2p5n2w) 3386 | -7/Garrison | Lost 7 allies 3485 | -7/Garrison | Discovered new exit (range 13) 3534 | -7/Garrison | Triggered checkpoint 3617 | -7/Garrison | Lost 3 allies 3748 | -7/Garrison | Triggered checkpoint 3767 | -7/Garrison | Discovered new exit (range 10) 3782 | -7/Garrison | Installed Relay Interface Framework 3798 | -7/Garrison | Entered Factory 3853 | -7/Factory | Repaired Carbon-fiber Leg 3911 | -7/Factory | Repaired Hvy. Beamcaster 3993 | -7/Factory | Core integrity fell below 20% 4206 | -7/Factory | Discovered new exit (range 5) 4641 | -7/Factory | Discovered new exit (range 8) 4725 | -7/Factory | Entered Storage 4817 | -7/Storage | Met 01-MTF 4922 | -7/Storage | Learned location of Armory (-3) 4941 | -7/Storage | Discovered new exit (range 6) 5058 | -7/Storage | Repaired Carbon-fiber Leg 5098 | -7/Storage | Repaired Carbon-fiber Leg 5206 | -7/Storage | Discovered new exit (range 16) 5231 | -7/Storage | Entered Factory 5231 | -6/Factory | Accompanied by 1 ally (01-MTF) 5231 | -6/Factory | Evolved 2 slots: Utility x1, Weapon x1 5234 | -6/Factory | 01-MTF left 5784 | -6/Factory | Build established: Tank 6097 | -6/Factory | Released all parts (6) 6110 | -6/Factory | Discovered new exit (range 6) 6115 | -6/Factory | Entered Lower Caves 6144 | -6/Lower Caves | Lost 5 parts (1p1n2u1w) 6183 | -6/Lower Caves | Spotted B-75 Beast 6268 | -6/Lower Caves | Lost 3 parts (1n2u) 6301 | -6/Lower Caves | Build established: Mutant 6387 | -6/Lower Caves | Core integrity fell below 50% 6390 | -6/Lower Caves | Discovered new exit (range 7) 6393 | -6/Lower Caves | Entered another Lower Caves area 6395 | -6/Lower Caves | Attracted the attention of an 0b10 checkpoint 6410 | -6/Lower Caves | Discovered new exit (range 12) 6411 | -6/Lower Caves | Identified exit to Data Miner 6415 | -6/Lower Caves | Entered Factory 6415 | -5/Factory | Evolved 2 slots: Utility x2 6499 | -5/Factory | Fabricated Antimatter Reactor (x2) 6619 | -5/Factory | Lost 8 parts (2p1n4u1w) 6687 | -5/Factory | Discovered new exit (range 6) 6689 | -5/Factory | Entered Extension 6820 | -5/Extension | Spotted B-75 Beast 6827 | -5/Extension | Spotted B-75 Beast 6836 | -5/Extension | Core integrity fell below 50% 6850 | -5/Extension | Core integrity fell below 20% 6853 | -5/Extension | Crushed by falling debris 6853 | -5/Extension | System corruption reached 10% 6856 | -5/Extension | Destroyed by B-75 Beast with Magnetic Acceleration Cannon Last Messages --------------- 06845_ Acquired 5 matter. 06846_ Penetrated by Slug. 06846_ Slug penetrates Wall. 06847_ Slug penetrates Earth. 06848_ Slug penetrates Wall. 06848_ Penetrated by Slug. 06851_ Mass Driver destroyed. 06851_ Slug penetrates Reinforced Barrier. 06852_ Slug penetrates Wall. 06853_ The unstable cave ceiling collapses. 06853_ Crushed by falling debris. 06853_ Gyrokinetic Inverter destroyed. 06853_ System corrupted by crushing effect (+4). 06853_ System Shield destroyed. 06853_ System corrupted by crushing effect (+2). 06854_ Penetrated by Slug. 06854_ Mass Driver destroyed. 06855_ Penetrated by Slug. 06855_ Slug penetrates Earth. 06856_ System corrupted: Heat flow error (+138). Map ----- +----------------------------------------------------+ | ?????????????????????????????????????????????????? | | ?????????????????????????????????????????????????? | | ?????????????????????????????????????????????????? | | ?????????????????????????????????????????????????? | | ?????????????????????????????????????????????????? | | ?????????????????????????????????????????????????? | | ?????????????????????????????????????????????????? | | ?????????????????????????????????????????????????? | | ????????????? #??????????????????????????????????? | | ????????????? #??????????????????????????????????? | | ????????????? #??##?##?? ????????????????????????? | | ??????????### ### ## ##? ?#??????????????????????? | | ??????????#"" "" "" ""#?????????????????????? | | ??????????# " " " " #?????????????????????? | | ??????????# w #?????????????????????? | | ??##??##??# #?????????????????????? | | ### ### ### #######???????????????? | | ???????????????? | | ????????????????? | | ?????????????????? | | ??????????????????? | | ktk kk ????????????????????? | | ###### #### BBh #?????????????????????? | | ?????????#; YhBB #?????????????????????? | | ?????????## Y % #?????????????????????? | | ?????????#; % BB % @ ##????????????????????? | | #????????## BB %;#????????????????????? | | #?????????###### #"""#%;#####????????????????????? | | #??????????????###???# #???????????????????????? | | ?????????????????????## #???????????????????????? | | | | | | | | | | | | | | | | | | | | | | | | | | | | | | | | | | | | | | | | | +----------------------------------------------------+ Best States ------------- Heat Dissipation 64 Energy Generation 26 Energy Capacity 360 Matter Stores 300 Matter Capacity 300 Sight Range 16 Robot Scan Range 14 Terrain Scan Range 16 Terrain Scan Density 10 ECM Strength 1 Armor Coverage 225 Resistance: KI 20 Resistance: EX 50 Utility Shielding 66 Weapon Cycling 15 Evasion (%) 71 Recoil Reduction 3 Offensive Hacking 11 Defensive Hacking 10 Item Schematics ----------------- Antimatter Reactor | -6/Factory | Hacked Robot Schematics ------------------ None Fabricated ------------ Antimatter Reactor | x2 | -5/Factory Alien Tech Used ----------------- None Achievements -------------- None Challenges ------------ None Game ------ Seed CentriumCouplerBuckler Manual? 0 Play Time 01:37:21 Cumulative 54.0 hours Start 2025.03.07 @ 19:55:16 End 2025.03.08 @ 21:42:27 Sessions 9 Manual Loads 0 Difficulty Rogue Special Mode None Game No. 73 Rogue 73 Adventurer 0 Explorer 0 Win Type - Total 1 Types 1/0/0/0/0/0/0/0/0 Lore% 24 Gallery% 40 Achievement% 35 Wizard Run 0 Options --------- Layout 1 ASCII 1 Keyboard 0 Movement Numpad Keybinds 0 Fullscreen 1 Font 24/Smallcaps Map View 50x35 Zoom Use 0% Tactical HUD 1 Map Filters NONE Filters NONE Steam 1 RUN: 78f032a8-e0ad-4cc1-b876-143237281ca2